fUSD/lending_fUSD_20251123
["ID","MTS","AMOUNT","RATE_DAILY","PERIOD"]
[394723504,1763916657690,-500.0,0.00038356,8]
[394723505,1763916657700,-500.0,0.00038356,8]
[394723506,1763916657709,-500.0,0.00038356,8]
[394723507,1763916657719,-111.10157663,0.00038356,8]
[394723508,1763916657740,-1006.23842337,0.00038356,8]
[394723509,1763916657750,-500.0,0.00038356,8]
[394723510,1763916657759,-569.28,0.00038356,8]
[394723511,1763916657768,-355.24186875,0.00038356,8]
[394723512,1763916657780,-150.96102886,0.00038356,8]
[394723513,1763916657790,-114.99897114,0.00038356,8]
[394723514,1763916657801,-385.00102886,0.00038356,8]
[394723515,1763916657810,-500.0,0.00038356,8]
[394723516,1763916657820,-642.28,0.00038356,8]
[394723517,1763916657830,-500.0,0.00038356,8]
[394723518,1763916657839,-150.0,0.00038356,2]
[394723519,1763916657848,-500.0,0.00038356,8]
[394723520,1763916657857,-150.0,0.00038356,2]
[394723521,1763916657867,-500.0,0.00038356,8]
[394723522,1763916657876,-500.0,0.00038356,8]
[394723523,1763916657885,-500.0,0.00038356,2]
[394723524,1763916657895,-500.0,0.00038356,8]
[394723525,1763916657904,-500.0,0.00038356,8]
[394723526,1763916657914,-594.25,0.00038356,8]
[394723527,1763916657923,-262.80665575,0.00038356,8]
[394723528,1763916657948,-237.19334425,0.00038356,8]
[394723529,1763916657958,-150.0,0.00038356,2]
[394723530,1763916657967,-500.0,0.00038356,8]
[394723531,1763916657977,-150.0,0.00038356,2]
[394723532,1763916657986,-780.93,0.00038356,8]
[394723533,1763916657995,-84.86261593,0.00038356,2]
[394723534,1763916659877,-151.0,0.00028,7]
[394723535,1763916659893,-189.86111214,0.00028,7]
[394723536,1763916659958,-28.05769786,0.00028,7]
[394723537,1763916659974,-754.75069188,0.00036632,2]
[394723538,1763916661458,-4729.41763255,0.00016799,2]
[394723539,1763916661469,-616.0,0.00016799,2]
[394723540,1763916661480,-274.18,0.00016799,2]
[394723541,1763916661529,-831.46928316,0.00016799,2]
[394723542,1763916661546,-25478.44940835,0.00016799,2]
[394723543,1763916661557,-375.256147,0.00016799,2]
[394723544,1763916661568,-1634.44281,0.00016799,2]
[394723545,1763916661666,-130.38971769,0.00016799,2]
[394723546,1763916669520,500.0,7.945e-05,2]
[394723547,1763916814434,150.0,0.00014725,2]
[394723548,1763916814554,150.0,0.00014725,2]
[394723549,1763916814952,255.29908838,0.00014725,2]
[394723550,1763916864895,-311.8472573,0.00016697,2]
[394723551,1763916864919,-164.1982278,0.00016698,2]
[394723552,1763916865074,-195.0,0.00016711,2]
[394723553,1763916865370,-195.0,0.00016724,2]
[394723554,1763916865394,-300.0,0.00016724,2]
[394723555,1763916865572,-300.0,0.00016749,2]
[394723556,1763916865743,-1200.0,0.00016797,2]
[394723557,1763916865766,-39.72641912,0.00016797,2]
[394723558,1763917235480,-164.1982278,0.00016698,2]
[394723559,1763917235505,-305.0,0.00016698,2]
[394723563,1763917437602,108.34451146,0.0001666,2]
[394723748,1763917797964,178.6,0.00010175,2]
[394723749,1763917798183,178.6,0.0001071,2]
[394723750,1763917798390,178.6,0.00011246,2]
[394723751,1763917798606,178.6,0.00011781,2]
[394723752,1763917798813,178.6,0.00012317,2]
[394723753,1763917799016,178.6,0.00012852,2]
[394723754,1763917799216,178.6,0.00013388,2]
[394723755,1763917799403,178.6,0.00013923,2]
[394723756,1763917799621,178.6,0.00014459,2]
[394723757,1763917799810,178.6,0.00014994,2]
[394723758,1763917800049,178.6,0.0001553,2]
[394723767,1763917832045,-178.6,0.00016065,2]
[394723768,1763917832055,-292.97311391,0.00016583,2]
[394723769,1763917832065,-303.0,0.00016583,2]
[394723770,1763917832075,-178.6,0.00016601,2]
[394723771,1763917832084,-195.0,0.00016666,2]
[394723772,1763917832094,-1434.01900299,0.00016668,2]
[394723773,1763917832103,-250.0,0.00016671,2]
[394723774,1763917832112,-300.0,0.00016683,2]
[394723775,1763917832122,-195.0,0.00016705,2]
[394723776,1763917832131,-337.16992201,0.00016708,2]
[394723777,1763917832140,-300.0,0.0001673,2]
[394723778,1763917832150,-258.69978818,0.0001673,2]
[394723779,1763917832168,-41.30021182,0.0001673,2]
[394723780,1763917832179,-178.6,0.00017136,2]
[394723781,1763917832188,-178.6,0.00017672,2]
[394723782,1763917832198,-189.0,0.00017726,2]
[394723783,1763917832207,-300.0,0.00017726,2]
[394723784,1763917832216,-300.0,0.00017726,2]
[394723785,1763917832225,-1200.0,0.00017726,2]
[394723786,1763917832234,-300.0,0.00017727,2]
[394723787,1763917832244,-150.99,0.00017728,2]
[394723788,1763917832253,-6610.88,0.00017728,2]
[394723789,1763917832262,-178.6,0.00018207,2]
[394723790,1763917832271,-300.0,0.00018326,2]
[394723791,1763917832280,-195.0,0.00018326,2]
[394723792,1763917832289,-300.0,0.00018326,2]
[394723793,1763917832299,-250.0,0.00018326,2]
[394723794,1763917832307,-195.0,0.00018326,2]
[394723795,1763917832317,-2500.0,0.00018332,2]
[394723796,1763917832326,-300.0,0.00018332,2]
[394723797,1763917832335,-172.4986946,0.00018332,2]
[394723798,1763917832344,-272.14642297,0.00018332,3]
[394723799,1763917832356,-1628.87699574,0.00018332,3]
[394723800,1763917832366,-195.0,0.00018332,2]
[394723801,1763917832375,-426.78462315,0.00018693,2]
[394723802,1763917832384,-178.6,0.00018743,2]
[394723803,1763917832394,-178.6,0.00019278,2]
[394723804,1763917832403,-420.0,0.00019347,2]
[394723805,1763917832413,-178.6,0.00019814,2]
[394723806,1763917832422,-178.6,0.00020349,2]
[394723807,1763917832431,-2516.9383811,0.00020578,2]
[394723808,1763917832442,-375.04985969,0.00020578,2]
[394723809,1763917832453,-3099.58681184,0.00020578,2]
[394723810,1763917832464,-1998.50742485,0.00020578,2]
[394723811,1763917832475,-1970.46752252,0.00020578,2]
[394723812,1763917832485,-610.0,0.00021581,2]
[394723813,1763917832494,-1132.02974644,0.00021641,2]
[394723814,1763917832516,-659.1457183,0.00021641,2]
[394723815,1763917832558,-474.78399393,0.00021641,2]
[394723816,1763917832569,-296.40886238,0.00021641,2]
[394723817,1763917832606,-2751.43167895,0.00021641,2]
[394723818,1763917832615,-200.0,0.00021715,2]
[394723819,1763917832625,-999.0,0.0002177,3]
[394723820,1763917832635,-204.89,0.00021772,2]
[394723821,1763917832644,-355.5,0.00022,14]
[394723822,1763917832654,-405.0,0.00022073,2]
[394723823,1763917832663,-5000.0,0.00022074,2]
[394723824,1763917832672,-2920.97058594,0.00022087,2]
[394723825,1763917832685,-91.10941406,0.00022087,2]
[394723826,1763917832695,-1158.07538436,0.00022096,2]
[394723830,1763917838027,-3187.19906549,0.00022096,2]
[394723831,1763917838186,-837.37,0.00022096,2]
[394723832,1763917838197,-114.90555015,0.00022096,2]
[394723833,1763917838207,-166.67,0.00022196,2]
[394723834,1763917838217,-283.5650003,0.00022489,2]
[394723835,1763917838226,-150.0,0.00022846,2]
[394723836,1763917838236,-204.89,0.00022982,2]
[394723837,1763917838245,-166.67,0.00023417,2]
[394723838,1763917838255,-65.29944955,0.00023495,30]
[394723859,1763917840142,-97.69055045,0.00023495,30]
[394723860,1763917840152,-266.57527823,0.00023637,2]
[394723861,1763917840162,-500.0,0.00023637,2]
[394723862,1763917840171,-500.0,0.00023637,2]
[394723863,1763917840181,-550.73955714,0.00023637,2]
[394723864,1763917840191,-420.29684416,0.00023637,2]
[394723865,1763917840200,-500.0,0.00023637,2]
[394723866,1763917840209,-415.38102528,0.00023637,2]
[394723867,1763917840219,-500.0,0.00023637,2]
[394723868,1763917840228,-500.0,0.00023637,2]
[394723869,1763917840238,-500.0,0.00023637,2]
[394723870,1763917840247,-500.0,0.00023637,2]
[394723871,1763917840256,-500.0,0.00023637,2]
[394723872,1763917840266,-500.0,0.00023637,2]
[394723873,1763917840275,-500.0,0.00023637,2]
[394723874,1763917840284,-500.0,0.00023637,2]
[394723875,1763917840294,-500.0,0.00023637,2]
[394723876,1763917840303,-217.34047381,0.00023637,2]
[394723877,1763917840312,-500.0,0.00023637,2]
[394723878,1763917840323,-500.0,0.00023637,2]
[394723879,1763917840334,-500.0,0.00023637,2]
[394723880,1763917840343,-500.0,0.00023637,2]
[394723881,1763917840352,-500.0,0.00023637,2]
[394723882,1763917840362,-500.0,0.00023637,2]
[394723883,1763917840371,-500.0,0.00023637,2]
[394723884,1763917840380,-500.0,0.00023637,2]
[394723885,1763917840389,-500.0,0.00023637,2]
[394723886,1763917840399,-500.0,0.00023637,2]
[394723887,1763917840408,-500.0,0.00023637,2]
[394723888,1763917840422,-500.0,0.00023637,2]
[394723889,1763917840431,-500.0,0.00023637,2]
[394723890,1763917840440,-500.0,0.00023637,2]
[394723891,1763917840450,-450.0,0.00023637,2]
[394723892,1763917840460,-500.0,0.00023637,2]
[394723893,1763917840469,-500.0,0.00023637,2]
[394723894,1763917840478,-500.0,0.00023637,2]
[394723895,1763917840487,-500.0,0.00023637,2]
[394723896,1763917840497,-500.0,0.00023637,2]
[394723897,1763917840506,-169.46885987,0.00023638,2]
[394723898,1763917840515,-55443.36274537,0.00023638,2]
[394723899,1763917840560,-1704.13180317,0.00023638,2]
[394723900,1763917840570,-1401.55,0.00023638,2]
[394723901,1763917840589,-1528.70657414,0.00023638,2]
[394723902,1763917840630,-3900.90181,0.00023638,2]
[394723903,1763917840641,-24104.6103854,0.00023638,2]
[394723904,1763917840660,-318.01194199,0.00023638,2]
[394723905,1763917840672,-1212.12124319,0.00023638,2]
[394723920,1763917843802,-2765.67133995,0.00023638,2]
[394723921,1763917844692,-925.9169098,0.00023638,2]
[394723922,1763917844745,-1202.21297461,0.00023638,2]
[394723926,1763917846976,-830.04110049,0.00023638,2]
[394723927,1763917846987,-1981.31,0.00023638,2]
[394723931,1763918431971,788.84,0.00013699,2]
[394723935,1763918758474,1878.25544366,0.00022,30]
[394723936,1763918769434,-223.55,0.00016497,2]
[394723937,1763918769458,-165.38584466,0.00016884,2]
[394723938,1763918769480,-310.0,0.00016899,2]
[394723939,1763918770816,335.35008298,0.000169,2]
[394723940,1763918812585,4515.71407236,0.000162,5]
[394723950,1763918905897,10000.01,0.00015,4]
[394723951,1763918905926,10000.01,0.00015,4]
[394723952,1763918905952,10000.01,0.00015,4]
[394723953,1763918905976,10000.01,0.00015,4]
[394723954,1763918906001,10000.01,0.00015,4]
[394723955,1763918906026,10000.01,0.00015,4]
[394723956,1763918906055,10000.01,0.00015,4]
[394723957,1763918906081,10000.01,0.00015,4]
[394723958,1763918906105,10000.01,0.00015,4]
[394723959,1763918906129,10000.01,0.00015,4]
[394723960,1763918913908,-673.935,0.00015,4]
[394723981,1763919032553,-390.08709417,0.0001595,2]
[394723982,1763919032563,-260.0,0.00015999,2]
[394723983,1763919032573,-300.0,0.00015999,2]
[394723984,1763919032582,-300.0,0.00015999,2]
[394723985,1763919032592,-1200.0,0.00015999,2]
[394723986,1763919032602,-300.0,0.00015999,2]
[394723987,1763919032611,-300.0,0.00015999,2]
[394723988,1763919032621,-68370.41095719,0.00016,4]
[394723989,1763919032630,-195.0,0.0001605,2]
[394723990,1763919032639,-484.29519647,0.000162,5]
[394723991,1763919032649,-195.0,0.0001627,2]
[394723992,1763919032658,-500.0,0.00016496,2]
[394723993,1763919032668,-500.0,0.00016496,2]
[394723994,1763919032677,-500.0,0.00016496,2]
[394723995,1763919032687,-500.0,0.00016496,2]
[394723996,1763919032696,-500.0,0.00016496,2]
[394723999,1763919032705,-500.0,0.00016496,2]
[394724002,1763919032715,-500.0,0.00016496,2]
[394724006,1763919032723,-500.0,0.00016496,2]
[394724009,1763919032733,-500.0,0.00016496,2]
[394724012,1763919032742,-500.0,0.00016496,2]
[394724014,1763919032752,-500.0,0.00016496,2]
[394724017,1763919032761,-500.0,0.00016496,2]
[394724019,1763919032771,-500.0,0.00016496,2]
[394724021,1763919032779,-500.0,0.00016496,2]
[394724023,1763919032788,-500.0,0.00016496,2]
[394724025,1763919032797,-500.0,0.00016496,2]
[394724027,1763919032806,-500.0,0.00016496,2]
[394724029,1763919032815,-500.0,0.00016496,2]
[394724031,1763919032829,-500.0,0.00016496,2]
[394724032,1763919032838,-500.0,0.00016496,2]
[394724033,1763919032848,-500.0,0.00016496,2]
[394724034,1763919032857,-500.0,0.00016496,2]
[394724035,1763919032866,-500.0,0.00016496,2]
[394724036,1763919032876,-500.0,0.00016496,2]
[394724037,1763919032885,-500.0,0.00016496,2]
[394724038,1763919032894,-500.0,0.00016496,2]
[394724039,1763919032904,-500.0,0.00016496,2]
[394724040,1763919032913,-500.0,0.00016496,2]
[394724041,1763919032923,-500.0,0.00016496,2]
[394724042,1763919032933,-250.0,0.00016556,2]
[394724043,1763919032942,-300.0,0.00016588,2]
[394724044,1763919032952,-300.0,0.00016588,2]
[394724045,1763919032962,-250.0,0.00016787,2]
[394724046,1763919032971,-500.0,0.00016812,2]
[394724047,1763919032984,-1108.5711,0.000169,2]
[394724048,1763919032993,-1200.0,0.00016911,2]
[394724049,1763919033003,-500.0,0.00016973,2]
[394724050,1763919033012,-545.35966413,0.00016973,2]
[394724051,1763919033022,-500.0,0.00016973,2]
[394724052,1763919033032,-151.0,0.00016997,2]
[394724053,1763919033042,-288.59436364,0.00016997,2]
[394724054,1763919033054,-246.37116376,0.00016999,2]
[394724055,1763919033063,-500.0,0.00016999,2]
[394724056,1763919033072,-500.0,0.00016999,2]
[394724057,1763919033081,-500.0,0.00016999,2]
[394724058,1763919033090,-500.0,0.00016999,2]
[394724059,1763919033099,-500.0,0.00016999,2]
[394724060,1763919033109,-500.0,0.00016999,2]
[394724061,1763919033118,-500.0,0.00016999,2]
[394724062,1763919033128,-500.0,0.00016999,2]
[394724063,1763919033137,-500.0,0.00016999,2]
[394724064,1763919033147,-500.0,0.00016999,2]
[394724065,1763919033157,-583.38139551,0.00016999,2]
[394724066,1763919033166,-500.0,0.00016999,2]
[394724067,1763919033175,-500.0,0.00016999,2]
[394724068,1763919033185,-500.0,0.00016999,2]
[394724069,1763919033194,-500.0,0.00016999,2]
[394724070,1763919033203,-500.0,0.00016999,2]
[394724071,1763919033213,-500.0,0.00016999,2]
[394724072,1763919033223,-500.0,0.00016999,2]
[394724073,1763919033233,-500.0,0.00016999,2]
[394724074,1763919033243,-500.0,0.00016999,2]
[394724075,1763919033253,-500.0,0.00016999,2]
[394724076,1763919033263,-500.0,0.00016999,2]
[394724077,1763919033273,-500.0,0.00016999,2]
[394724078,1763919033283,-500.0,0.00016999,2]
[394724079,1763919033292,-500.0,0.00016999,2]
[394724080,1763919033301,-500.0,0.00016999,2]
[394724081,1763919033311,-500.0,0.00016999,2]
[394724082,1763919033320,-500.0,0.00016999,2]
[394724083,1763919033330,-290.95902444,0.00016999,2]
[394724084,1763919033340,-500.0,0.00016999,2]
[394724085,1763919033349,-294.20779091,0.00016999,2]
[394724086,1763919033359,-500.0,0.00016999,2]
[394724087,1763919033368,-435.51769,0.00016999,2]
[394724088,1763919033378,-250.0,0.00017,2]
[394724089,1763919033387,-23886.08920824,0.00017,2]
[394724090,1763919033400,-25028.49894231,0.00017,2]
[394724091,1763919033411,-4780.31755487,0.00017,2]
[394724092,1763919033422,-523.51158642,0.00017,2]
[394724093,1763919033433,-1247.04778467,0.00017,2]
[394724094,1763919033468,-273.84430536,0.00017,2]
[394724095,1763919033481,-274.6787721,0.00017,2]
[394724096,1763919033492,-601.47958321,0.00017,2]
[394724099,1763919038274,-542115.73963068,0.00017,2]
[394724100,1763919038436,-467.745,0.00017,2]
[394724101,1763919038544,-583.72879,0.00017,2]
[394724112,1763919040350,-243526.35270117,0.00017,2]
[394724113,1763919040360,-510.0,0.00017119,2]
[394724114,1763919040369,-205.74103606,0.000174,2]
[394724115,1763919040378,-420.0,0.00017492,2]
[394724116,1763919040388,-300.0,0.00017492,2]
[394724117,1763919040398,-4616.89569018,0.000175,2]
[394724118,1763919040408,-531.44794413,0.000175,2]
[394724119,1763919040417,-1000.0,0.00017521,2]
[394724120,1763919040427,-195.0,0.00017545,2]
[394724121,1763919040436,-1680.0,0.0001758,2]
[394724122,1763919040445,-300.0,0.000176,2]
[394724123,1763919040455,-300.0,0.000176,2]
[394724124,1763919040465,-195.0,0.000176,2]
[394724125,1763919040475,-403.0,0.000177,5]
[394724126,1763919040485,-250.0,0.0001782,2]
[394724127,1763919040494,-300.0,0.0001782,2]
[394724128,1763919040503,-195.0,0.0001782,2]
[394724129,1763919040512,-1181.78229963,0.00018,2]
[394724130,1763919040521,-1766.41985469,0.000181,2]
[394724131,1763919040531,-866.0,0.00018319,2]
[394724132,1763919040540,-720.0,0.00018472,2]
[394724133,1763919040549,-194.52691593,0.00018942,2]
[394724134,1763919040558,-194.52703238,0.00018942,2]
[394724135,1763919040567,-194.41045728,0.00018981,2]
[394724136,1763919040577,-5131.73210156,0.00019,2]
[394724137,1763919040586,-587.0,0.00019125,2]
[394724138,1763919040595,-2000.0,0.00019317,2]
[394724139,1763919040605,-2000.0,0.00019317,2]
[394724140,1763919040615,-2000.0,0.00019317,2]
[394724141,1763919040625,-2000.0,0.00019317,2]
[394724143,1763919040635,-2000.0,0.00019317,2]
[394724145,1763919040646,-2000.0,0.00019317,2]
[394724147,1763919040655,-2351.0,0.00019317,2]
[394724149,1763919040664,-2958.03,0.00019339,2]
[394724151,1763919040673,-919.0,0.00019599,2]
[394724153,1763919040682,-4616.89569016,0.00019806,2]
[394724154,1763919040693,-1000.0,0.00019899,2]
[394724155,1763919040702,-1000.0,0.00019899,2]
[394724156,1763919040713,-1000.0,0.00019899,2]
[394724157,1763919040723,-376.727,0.00019899,2]
[394724158,1763919040732,-168.51329712,0.000199,2]
[394724160,1763919040742,-205.74103598,0.0001993,2]
[394724161,1763919040752,-498.60591601,0.0002,2]
[394724162,1763919040762,-2561.18038953,0.0002,2]
[394724163,1763919040771,-1522.78558692,0.0002,2]
[394724164,1763919040781,-25421.15417725,0.0002,2]
[394724165,1763919040791,-64960.87057753,0.0002,5]
[394724166,1763919040802,-3950.0,0.0002,2]
[394724167,1763919040811,-7240.98882231,0.0002,2]
[394724168,1763919040820,-1285.80214279,0.0002,2]
[394724169,1763919040829,-1037.85154712,0.0002,2]
[394724170,1763919040838,-2844.11982945,0.0002,2]
[394724171,1763919040847,-12837.41450536,0.0002,2]
[394724172,1763919040856,-8720.0,0.0002001,2]
[394724173,1763919040865,-2000.0,0.00020062,2]
[394724174,1763919040875,-1533.668,0.00020062,2]
[394724175,1763919040884,-250.0,0.00020185,2]
[394724176,1763919040893,-788.84,0.00020187,2]
[394724177,1763919040903,-1000.0,0.00020398,2]
[394724178,1763919040913,-1000.0,0.00020398,2]
[394724179,1763919040922,-1000.0,0.00020398,2]
[394724180,1763919040932,-1000.0,0.00020398,2]
[394724181,1763919040942,-1000.0,0.00020398,2]
[394724182,1763919040951,-1000.0,0.00020398,2]
[394724183,1763919040962,-622.189,0.00020398,2]
[394724184,1763919040972,-1000.0,0.00020398,2]
[394724185,1763919040985,-1000.0,0.00020398,2]
[394724186,1763919040995,-1000.0,0.00020398,2]
[394724187,1763919041005,-1000.0,0.00020398,2]
[394724188,1763919041014,-1000.0,0.00020398,2]
[394724189,1763919041024,-597.513,0.00020398,2]
[394724190,1763919041034,-1000.0,0.00020398,2]
[394724191,1763919041044,-1000.0,0.00020398,2]
[394724192,1763919041055,-1852.42,0.00020406,2]
[394724193,1763919041065,-426.78462315,0.00020502,2]
[394724194,1763919041076,-1000.0,0.00020565,2]
[394724195,1763919041086,-21370.85,0.00020648,2]
[394724196,1763919041095,-501.28182449,0.00020656,2]
[394724197,1763919041106,-500.0,0.00020656,2]
[394724198,1763919041116,-500.0,0.00020656,2]
[394724199,1763919041126,-500.0,0.00020656,2]
[394724200,1763919041135,-500.0,0.00020656,2]
[394724201,1763919041145,-164.12207296,0.00020656,2]
[394724202,1763919041154,-500.0,0.00020656,2]
[394724203,1763919041163,-500.0,0.00020656,2]
[394724204,1763919041172,-500.0,0.00020656,2]
[394724205,1763919041181,-520.88092567,0.00020656,2]
[394724206,1763919041190,-500.0,0.00020656,2]
[394724207,1763919041200,-500.0,0.00020656,2]
[394724208,1763919041209,-500.0,0.00020656,2]
[394724209,1763919041218,-500.0,0.00020656,2]
[394724210,1763919041227,-500.0,0.00020656,2]
[394724211,1763919041237,-500.0,0.00020656,2]
[394724212,1763919041246,-164.86773669,0.00020656,2]
[394724213,1763919041256,-500.0,0.00020656,2]
[394724214,1763919041265,-500.0,0.00020656,2]
[394724215,1763919041275,-500.0,0.00020656,2]
[394724216,1763919041284,-305.82149311,0.00020656,2]
[394724217,1763919041295,-162.92450325,0.00020656,2]
[394724218,1763919041304,-500.0,0.00020656,2]
[394724219,1763919041314,-500.0,0.00020656,2]
[394724220,1763919041323,-500.86714975,0.00020656,2]
[394724221,1763919041333,-200.0,0.00020656,2]
[394724222,1763919041343,-500.0,0.00020656,2]
[394724223,1763919041354,-166.21595802,0.00020656,2]
[394724224,1763919041365,-500.0,0.00020656,2]
[394724225,1763919041374,-500.0,0.00020656,2]
[394724226,1763919041383,-531.44794408,0.00020661,2]
[394724227,1763919041393,-150.54,0.0002069,2]
[394724228,1763919041402,-977.51752428,0.0002069,2]
[394724229,1763919041412,-22508.22364931,0.000207,2]
[394724230,1763919041421,-200.0,0.0002074,2]
[394724231,1763919041430,-1600.0,0.00020833,2]
[394724232,1763919041440,-823.0,0.0002091,2]
[394724233,1763919041449,-150.54,0.0002099,2]
[394724234,1763919041458,-20000.0,0.00021,2]
[394724235,1763919041467,-500.0,0.00021,5]
[394724236,1763919041477,-41519.71940701,0.00021,2]
[394724237,1763919041486,-1184.69848975,0.00021,2]
[394724238,1763919041497,-195.55122067,0.00021,2]
[394724239,1763919041507,-1000.0,0.00021204,2]
[394724240,1763919041516,-1000.0,0.00021204,2]
[394724241,1763919041530,-415.16633773,0.00021204,2]
[394724242,1763919041541,-1000.0,0.00021204,2]
[394724243,1763919041552,-1002.06775106,0.00021204,2]
[394724244,1763919041563,-1000.0,0.00021204,2]
[394724245,1763919041580,-268.06848757,0.00021204,2]
[394724246,1763919041590,-1000.0,0.00021204,2]
[394724247,1763919041600,-1000.0,0.00021204,2]
[394724248,1763919041611,-1000.0,0.00021204,2]
[394724249,1763919041621,-1000.0,0.00021204,2]
[394724250,1763919041632,-1000.0,0.00021204,2]
[394724251,1763919041642,-1000.0,0.00021204,2]
[394724252,1763919041651,-500.0,0.00021204,2]
[394724253,1763919041661,-1000.0,0.00021204,2]
[394724254,1763919041670,-190.10388921,0.00021204,2]
[394724255,1763919041680,-572.9799161,0.00021204,2]
[394724256,1763919041689,-1000.0,0.00021204,2]
[394724257,1763919041699,-3292.0,0.00021226,2]
[394724258,1763919041708,-150.0,0.00021255,2]
[394724259,1763919041718,-150.0,0.00021255,2]
[394724260,1763919041730,-150.0,0.00021255,2]
[394724261,1763919041739,-185.14866466,0.00021255,2]
[394724262,1763919041748,-150.0,0.00021255,2]
[394724263,1763919041758,-150.0,0.00021255,2]
[394724264,1763919041768,-150.0,0.00021255,2]
[394724265,1763919041777,-209.44855313,0.00021255,2]
[394724266,1763919041786,-150.0,0.00021255,2]
[394724267,1763919041797,-150.0,0.00021255,2]
[394724268,1763919041807,-245.97209231,0.00021255,2]
[394724269,1763919041819,-150.0,0.00021255,2]
[394724270,1763919041829,-150.0,0.00021255,2]
[394724271,1763919041840,-150.0,0.00021255,2]
[394724272,1763919041849,-150.0,0.00021255,2]
[394724273,1763919041860,-150.0,0.00021255,2]
[394724274,1763919041870,-400.0,0.0002134,2]
[394724275,1763919041879,-150.54,0.0002149,2]
[394724276,1763919041893,-57156.95115833,0.000215,2]
[394724277,1763919041904,-220.54231541,0.000215,2]
[394724278,1763919041914,-172.0,0.00021631,2]
[394724279,1763919041924,-172.0,0.00021634,2]
[394724280,1763919041934,-150.0,0.00021648,4]
[394724281,1763919041946,-172.0,0.0002168,2]
[394724282,1763919041957,-150.0,0.00021727,4]
[394724283,1763919041966,-150.0,0.00021727,4]
[394724284,1763919041977,-477.88929844,0.00021731,2]
[394724285,1763919041991,-371.40701666,0.00021751,2]
[394724286,1763919042000,-1500.0,0.00021751,2]
[394724287,1763919042011,-525.38094523,0.00021751,2]
[394724288,1763919042023,-798.42345277,0.00021751,2]
[394724289,1763919042032,-634.83080984,0.00021751,2]
[394724290,1763919042043,-1500.0,0.00021751,2]
[394724291,1763919042055,-172.25490603,0.00021751,2]
[394724292,1763919042064,-1648.73886154,0.00021751,2]
[394724293,1763919042074,-1500.0,0.00021751,2]
[394724294,1763919042088,-1001.54530513,0.00021751,2]
[394724295,1763919042098,-1500.0,0.00021751,2]
[394724296,1763919042108,-172.0,0.00021769,2]
[394724297,1763919042119,-150.0,0.00021845,4]
[394724298,1763919042128,-150.0,0.00021845,4]
[394724299,1763919042138,-153.15,0.00022,7]
[394724300,1763919042147,-4116.66663381,0.00022,2]
[394724301,1763919042157,-160.97,0.00022,2]
[394724302,1763919042166,-220.65,0.00022,2]
[394724303,1763919042176,-172.0,0.00022015,2]
[394724304,1763919042186,-600.0,0.00022025,2]
[394724305,1763919042195,-150.0,0.00022042,4]
[394724306,1763919042206,-150.0,0.00022042,4]
[394724307,1763919042216,-1500.0,0.00022063,2]
[394724308,1763919042226,-172.0,0.00022076,2]
[394724309,1763919042236,-490.87389864,0.000221,2]
[394724310,1763919042246,-238.55204116,0.0002211,2]
[394724311,1763919042256,-4616.89569016,0.00022112,2]
[394724312,1763919042266,-150.0,0.00022199,4]
[394724313,1763919042275,-150.0,0.00022199,4]